Cogmind - Beta 16.1 @@@ ROGUE MODE // 2026.04.21 @ 11:38:32 // Winter2019/RPGLIKE Player: Jimothy Jimone Result: Destroyed by Y-45 Defender with Heavy Assault Rifle Performance ------------- Evolutions (2) 1000 Regions Visited (4) 800 Robots Destroyed (45) 225 Value Destroyed (668) 668 Prototype IDs (0) 0 Alien Tech Used (0) 0 Bonus (200) 200 TOTAL SCORE: 2893 Bonus ------- Pacifist 200 Cogmind --------- Core Integrity 0/1350 Matter 300/300 Energy 160/160 System Corruption 0% Temperature Cool (9) Movement Rolling (80) Location -8/Materials Parts ------- > --- POWER (1) -------- Light Nuclear Core > --- PROPULSION (1) --- Wheel > --- UTILITY (3) ------ Improved Sensor Array Improved Signal Interpreter Melee Analysis Suite > --- WEAPON (1) ------- Axe > --- INVENTORY (1) ---- Shotgun Peak State ------------ > --- POWER ------------ Light Nuclear Core > --- PROPULSION ------- Wheel > --- UTILITY ---------- Improved Sensor Array Improved Signal Interpreter Melee Analysis Suite > --- WEAPON ----------- Axe > --- INVENTORY -------- (None) [Rating: 16] Favorites ----------- Power Light Nuclear Core Engine Ion Engine Power Core Light Nuclear Core Propulsion Wheel Wheel Wheel Utility Melee Analysis Suite Device Improved Sensor Array Processor Melee Analysis Suite Weapon Katana Ballistic Gun Shotgun Slashing Weapon Katana Build | -11 -10 -9 -9 -8 ------- Run | Yrd Mat Mat Min Mat Slots Evolved 2 | . . . . 2 Power . | . . . . . Propulsion . | . . . . . Utility 2 | . . . . 2 Weapon . | . . . . . Parts Attached 16 | 4 . 2 6 4 Power 3 | 1 . . 2 . Engine 2 | 1 . . 1 . Core 1 | . . . 1 . Reactor . | . . . . . Propulsion 3 | 1 . . 2 . Treads . | . . . . . Leg . | . . . . . Wheel 3 | 1 . . 2 . Hover . | . . . . . Flight . | . . . . . Utility 5 | . . 1 1 3 Device 1 | . . . . 1 Storage . | . . . . . Processor 4 | . . 1 1 2 Hackware . | . . . . . Protection . | . . . . . Artifact . | . . . . . Weapon 5 | 2 . 1 1 1 Energy Gun . | . . . . . Energy Cannon . | . . . . . Ballistic Gun 3 | 2 . 1 . . Ballistic Cannon . | . . . . . Launcher . | . . . . . Special Weapon . | . . . . . Impact Weapon . | . . . . . Slashing Weapon 2 | . . . 1 1 Piercing Weapon . | . . . . . Special Melee Weapon . | . . . . . Unidentified Prototypes . | . . . . . Parts Lost . | . . . . . Power . | . . . . . Propulsion . | . . . . . Utility . | . . . . . Weapon . | . . . . . Highest Loss Streak . | . . . . . To Critical Strikes . | . . . . . Average Backups . | . . . . . Power . | . . . . . Propulsion . | . . . . . Utility . | . . . . . Weapon . | . . . . . Tool/Special . | . . . . . Unused Backups 1 | . . . . 1 Power . | . . . . . Propulsion . | . . . . . Utility . | . . . . . Weapon 1 | . . . . 1 Tool/Special . | . . . . . Average Slot Usage (%) 97 | . 75 82 99 99 Engine 12 | . 25 25 15 . Core 10 | . . . 9 19 Wheel 23 | . 25 25 25 19 Device 2 | . . . . 9 Processor 23 | . . 7 25 28 Ballistic Gun 9 | . 25 25 10 . Slashing Weapon 14 | . . . 14 19 Peak Build Rating 16 | 3 3 5 10 16 Average Rating 8 | 2 3 4 7 13 On Entrance 4 | . 3 3 5 10 Avg Prop Armor Cover (%) . | . . . . . Naked Turns . | . . . . . Heaviest Build 9 | 7 7 8 8 9 Greatest Support 16 | 16 16 16 16 10 Greatest Overweight (x) 2 | 2 . . . . Average Overweight (x) . | . . . . . Largest Inventory Capacity 1 | . . . . 1 Average Capacity . | . . . . . Most Carried 1 | . . . . 1 Average Carried . | . . . . . Final Capacity 1 | . . . . 1 Final Carried 1 | . . . . 1 Class Distribution -------------------- 67% | Mutant 32% | Scavenger-Mutant Dominant Class ---------------- Mutant | -10/Materials Mutant | -9/Materials Scavenger-Mutant | -9/Mines Mutant | -8/Materials Resources | -11 -10 -9 -9 -8 ----------- Run | Yrd Mat Mat Min Mat Matter Collected 557 | 240 . . 296 21 Remotely . | . . . . . Salvage Created 1211 | . . . 1162 49 Parts 79 | . . 7 63 9 Haulers Intercepted . | . . . . . Recyclers Shooed 1 | . . . . 1 Parts Field Recycled . | . . . . . Retrieved Matter . | . . . . . Parts Self-Destructed . | . . . . . Prevented . | . . . . . Parts Restored . | . . . . . Kills | -11 -10 -9 -9 -8 ------- Run | Yrd Mat Mat Min Mat Combat Hostiles Destroyed 17 | . . 2 12 3 Melee 8 | . . . 5 3 Guns 9 | . . 2 7 . Classes Destroyed 8 | . . 2 6 . Worker 9 | . . . 9 . Builder 6 | . . . 5 1 Tunneler 6 | . . . 6 . Recycler 7 | . . . 7 . Swarmer 10 | . . . 7 3 Grunt 5 | . . 1 4 . Duelist 1 | . . . 1 . Sentry 1 | . . 1 . . Best Kill Streak 4 | . . 2 4 3 Combat Bots Only 4 | . . 2 4 3 Max Kills in Single Turn 1 | . . 1 1 1 Gunslinging . | . . . . . Exploded . | . . . . . Melee 1 | . . . 1 1 Uniques/NPCs Destroyed . | . . . . . Combat | -11 -10 -9 -9 -8 -------- Run | Yrd Mat Mat Min Mat Hostile Shots Fired 165 | . 14 31 72 48 Missed 34 | . 4 8 13 9 Hits 131 | . 10 23 59 39 Melee 9 | . . . 9 . Projectile 122 | . 10 23 50 39 Critical Strikes 3 | . . . 2 1 Damage Taken 1671 | . 110 252 772 537 Core 1439 | . 92 206 687 454 Absorbed by Shields . | . . . . . Redirected to Core 762 | . 59 140 285 278 Ignored by Resistances 373 | . . 73 147 153 Core Remaining (%) 71 | 100 84 . 31 . Volleys Fired 54 | . . 12 42 . Largest 1 | . . 1 1 . Hottest 23 | . . 23 23 . Shots Fired 54 | . . 12 42 . Gun 54 | . . 12 42 . Cannon . | . . . . . Launcher . | . . . . . Special . | . . . . . Kinetic 54 | . . 12 42 . Thermal . | . . . . . Explosive . | . . . . . Electromagnetic . | . . . . . Robot Hit Streak 6 | . . 4 6 . Robot Miss Streak 3 | . . 3 3 . Penetration Max . | . . . . . Secondary Targets . | . . . . . Shots Hit Robots 83 | . . 9 66 8 Core Hits 42 | . . 4 34 4 Critical Kills . | . . . . . Critical Parts Destroyed 1 | . . . 1 . Critical Strikes 4 | . . . 4 . Destroy 1 | . . . 1 . Sever 3 | . . . 3 . Melee Attacks 73 | . . . 47 26 Impact . | . . . . . Slashing 73 | . . . 47 26 Piercing . | . . . . . Sneak Attacks 21 | . . . 18 3 Combat Hostiles . | . . . . . Follow-up Attacks . | . . . . . Damage Inflicted 2980 | . . 130 2399 451 Guns 626 | . . 130 496 . Cannons . | . . . . . Explosions 348 | . . . 290 58 Melee 2006 | . . . 1613 393 Ramming . | . . . . . Kinetic 626 | . . 130 496 . Thermal 290 | . . . 290 . Explosive 58 | . . . . 58 Electromagnetic . | . . . . . Impact . | . . . . . Slashing 2006 | . . . 1613 393 Piercing . | . . . . . Highest Corruption . | . . . . . Average Corruption . | . . . . . Corruption Purged . | . . . . . Corruption Blocked . | . . . . . Overload Shots . | . . . . . Overflow Damage 435 | . . . 308 127 Projectiles . | . . . . . Explosions 15 | . . . 15 . Melee 420 | . . . 293 127 Knockbacks . | . . . . . Impact . | . . . . . Kinetic . | . . . . . Secondary . | . . . . . Self-Inflicted Damage 270 | . . . 92 178 Shots 5 | . . . 3 2 Rammed . | . . . . . Targets Rammed . | . . . . . Kicked . | . . . . . Crushed . | . . . . . Highest Temperature 18 | . . . 18 9 Average Temperature 12 | . . . 18 9 Received Heat Transfer 555 | . 42 129 231 153 Siege Activations . | . . . . . Martial Activations . | . . . . . Shielding Activations . | . . . . . Robots Disrupted . | . . . . . Combat Hostiles . | . . . . . Robots Corrupted . | . . . . . Combat Hostiles . | . . . . . Parts Fried . | . . . . . Impact Corruptions . | . . . . . Robots Melted . | . . . . . Combat Hostiles . | . . . . . Parts Melted . | . . . . . Heat Transferred 350 | . . . 350 . Parts Sabotaged . | . . . . . Parts Stolen . | . . . . . Parts Stripped . | . . . . . Power Chain Reactions . | . . . . . Alert | -11 -10 -9 -9 -8 ------- Run | Yrd Mat Mat Min Mat Maximum Alert Level 1 | . . . 1 1 Low Security (%) 76 | 100 100 100 63 94 Level 1 23 | . . . 36 5 Level 2 . | . . . . . Level 3 . | . . . . . Level 4 . | . . . . . Level 5 . | . . . . . High Security . | . . . . . Max Security . | . . . . . Peak Influence 319 | . . 50 239 319 Initial 78 | . . . 15 78 Average 124 | . . 5 151 131 Influence Increases 1037 | . . 50 576 411 Destroy 0b10 Robot/C 340 | . . 40 240 60 Destroy 0b10 Robot/NC 140 | . . . 135 5 Destroy Leader 60 | . . 10 40 10 Disable Machine 255 | . . . 105 150 Destroy Structure 77 | . . . 11 66 Lose Combat Pursuer 165 | . . . 45 120 Influence Decreases 718 | . . 10 413 295 Entered New Map 150 | . . . 25 125 Time Decay 568 | . . 10 388 170 Squads Dispatched 4 | . 1 2 . 1 Investigation 1 | . 1 . . . Extermination . | . . . . . Reinforcement 3 | . . 2 . 1 Assault . | . . . . . Garrison . | . . . . . Intercept . | . . . . . Searches Triggered . | . . . . . Construction Impeded . | . . . . . Haulers Reinforced . | . . . . . Active Scanning Responses . | . . . . . Cargo Convoy Interrupts . | . . . . . Stealth | -11 -10 -9 -9 -8 --------- Run | Yrd Mat Mat Min Mat Distress Signals 1 | . . . . 1 Communications Jammed . | . . . . . Distress Signals . | . . . . . Times Spotted 47 | . 6 11 14 16 Peak Tracking Total 16 | . 7 8 4 16 Tactical Retreats 4 | . . . 2 2 Traps | -11 -10 -9 -9 -8 ------- Run | Yrd Mat Mat Min Mat Traps Triggered 1 | . 1 . . . Indirectly . | . . . . . Trap Hack Attempts . | . . . . . Triggered . | . . . . . Disarmed . | . . . . . Reprogrammed . | . . . . . Reused . | . . . . . Traps Extracted . | . . . . . Installed . | . . . . . Triggered . | . . . . . Machines | -11 -10 -9 -9 -8 ---------- Run | Yrd Mat Mat Min Mat Machines Disabled 17 | . . . 7 10 Max in Single Turn 4 | . . . 4 1 Machines Repaired . | . . . . . Machines Dismantled . | . . . . . Machines Sabotaged . | . . . . . Overloaded Fab Kills . | . . . . . Hacking | -11 -10 -9 -9 -8 --------- Run | Yrd Mat Mat Min Mat Machines Accessed 2 | . 1 . . 1 Terminals . | . . . . . Fabricators . | . . . . . Repair Stations . | . . . . . Recycling Units 2 | . 1 . . 1 Scanalyzers . | . . . . . Garrison Access . | . . . . . Total Hacks 6 | . 2 . . 4 Successful 6 | . 2 . . 4 Failed . | . . . . . Catastrophic . | . . . . . Database Lockouts . | . . . . . Manual . | . . . . . Terminals . | . . . . . Fabricators . | . . . . . Repair Stations . | . . . . . Recycling Units 6 | . 2 . . 4 Scanalyzers . | . . . . . Garrison Access . | . . . . . Terminal Hacks . | . . . . . Fabricator Hacks . | . . . . . Repair Station Hacks . | . . . . . Recycling Unit Hacks 6 | . 2 . . 4 Process 1 | . . . . 1 Report Inventory 2 | . 1 . . 1 Retrieve Matter 2 | . . . . 2 Retrieve Components 1 | . 1 . . . Scanalyzer . | . . . . . Garrison Access Hacks . | . . . . . Unauthorized Hacks . | . . . . . Terminals . | . . . . . Fabricators . | . . . . . Repair Stations . | . . . . . Recycling Units . | . . . . . Scanalyzers . | . . . . . Garrison Access . | . . . . . Data Cores Recovered . | . . . . . Used . | . . . . . Hacking Detections 1 | . . . . 1 Full Trace Events . | . . . . . Feedback Events . | . . . . . Feedback Blocked . | . . . . . Robot Schematics Acquired . | . . . . . Robots Built . | . . . . . Authchips . | . . . . . Time . | . . . . . Total Robot Build Rating . | . . . . . Part Schematics Acquired . | . . . . . Parts Built . | . . . . . Authchips . | . . . . . Time . | . . . . . Total Part Build Rating . | . . . . . Part Studies Acquired . | . . . . . Parts Repaired . | . . . . . Time . | . . . . . Parts Recycled . | . . . . . Recycled Matter 19 | . . . . 19 Retrieved Matter 19 | . . . . 19 Retrieved Components 3 | . 3 . . . Parts Scanalyzed . | . . . . . Part Schematics Acquired . | . . . . . Parts Damaged . | . . . . . Bothacking | -11 -10 -9 -9 -8 ------------ Run | Yrd Mat Mat Min Mat Used RIF Installer . | . . . . . Robots Hacked . | . . . . . Non-combat . | . . . . . Combat . | . . . . . Robot Hacks Applied . | . . . . . Relay Couplers Released . | . . . . . Fabnet Peak Effective % . | . . . . . Robots Rewired . | . . . . . Allies Hacked . | . . . . . Hacks Repelled . | . . . . . Allies | -11 -10 -9 -9 -8 -------- Run | Yrd Mat Mat Min Mat Total Allies . | . . . . . Largest Group . | . . . . . Highest-Rated Group . | . . . . . Highest-Rated Ally . | . . . . . Total Orders . | . . . . . Ally Attacks . | . . . . . Total Damage . | . . . . . Kills . | . . . . . Allies Corrupted . | . . . . . Allies Melted . | . . . . . Intel | -11 -10 -9 -9 -8 ------- Run | Yrd Mat Mat Min Mat Active Infowar (turns) 221 | . . . . 221 Sensors 221 | . . . . 221 Robot Analysis Total . | . . . . . Derelict Logs Recovered 1 | . . . 1 . Drone Launches . | . . . . . Drone Recoveries . | . . . . . Exploration | -11 -10 -9 -9 -8 ------------- Run | Yrd Mat Mat Min Mat Turns Passed 1535 | 63 42 121 950 359 Spaces Moved 1375 | 64 43 95 826 347 Core 44 | 44 . . . . Treads . | . . . . . Legs . | . . . . . Wheels 1331 | 20 43 95 826 347 Hover . | . . . . . Flight . | . . . . . Fastest Speed 50 | 50 100 100 80 80 Average Speed 87 | 91 100 100 87 80 Slowest Speed 150 | 150 100 100 100 80 Overloaded Moves . | . . . . . Propulsion Burnouts . | . . . . . Robots Hopped . | . . . . . Potential Cave-ins . | . . . . . Cave-ins Triggered . | . . . . . Exploration Rate (%) 35 | 4 23 26 84 38 Regions Visited 4 Branch Regions 1 Pre-discovered Areas . | . . . . . Known Exits Taken 1 | . . 1 . . Unknown Exits Taken 3 | 1 1 . 1 . Scrap Searched 1 | . . . 1 . Spaces Dug 1 | . . . . 1 Terrain Destroyed 96 | . . . 11 85 Melee 1 | . . . . 1 Projectile . | . . . . . AOE 95 | . . . 11 84 Terrain Rammed . | . . . . . Walls Destroyed . | . . . . . Machines Disabled . | . . . . . Actions | -11 -10 -9 -9 -8 --------- Run | Yrd Mat Mat Min Mat Total 1538 | 68 42 109 936 383 Wait 9 | . . . 9 . Move 1371 | 63 42 94 825 347 Hop . | . . . . . Pick Up 3 | . . . . 3 Fast Attach 6 | 3 . 1 1 1 Attach 1 | . . . . 1 Detach . | . . . . . Swap 9 | 1 . 1 5 2 Drop 7 | 1 . 1 3 2 Fire 54 | . . 12 42 . Melee 73 | . . . 47 26 Ram . | . . . . . Kick . | . . . . . Crush . | . . . . . Escape Stasis . | . . . . . Rewire . | . . . . . Trap . | . . . . . Miscellaneous 5 | . . . 4 1 Route ------- -11/Scrapyard -10/Materials -9/Materials -9/Mines -8/Materials History --------- Turn | Location | Event 3 | -11/Scrapyard | Discovered new exit (range 16) 64 | -11/Scrapyard | Entered Materials 101 | -10/Materials | Discovered new exit (range 6) 106 | -10/Materials | Entered another Materials area 108 | -9/Materials | Reached level 2 222 | -9/Materials | Discovered new exit (range 5) 226 | -9/Materials | Identified exit to Mines 227 | -9/Materials | Entered Mines 240 | -9/Mines | Learned Materials emergency access door positions 291 | -9/Mines | Met a Derelict bent on vengeance 294 | -9/Mines | Core integrity fell below 50% 304 | -9/Mines | Build established: Mutant 414 | -9/Mines | Reached level 3 983 | -9/Mines | Build established: Scavenger-Mutant 1171 | -9/Mines | Discovered new exit (range 7) 1177 | -9/Mines | Entered Materials 1178 | -8/Materials | Core integrity fell below 50% 1179 | -8/Materials | Reached level 4 1312 | -8/Materials | Reached level 5 1315 | -8/Materials | Upgraded with Utility slot (x2) 1395 | -8/Materials | Core integrity fell below 20% 1475 | -8/Materials | Build established: Mutant 1536 | -8/Materials | Destroyed by Y-45 Defender with Heavy Assault Rifle Last Messages --------------- Critical hit (Burn: +37). Destroyed Imp. Hover Unit. ALERT: Suspicious intruders detected, dispatching Cutter reinforcements to area. Acquired 21 matter. Sneak attack on M-13 Machinist. Destroyed Wheel. Destroyed Recalibrator. Connecting with Terminal... Terminal disabled. Connecting with Repair Station... Repair Station disabled. Matter Pump disabled. Sneak attack on K-01 Serf. Destroyed Sml. Matter Pod. Destroyed Lgt. Ion Engine. Electrolysis Chamber disabled. S-10 Pest destroyed. Used Protomatter to restore core integrity (+21, depleted) Map ----- +----------------------------------------------------+ | ########???????????????# #???? | | #??????????????????????###+##?????+#####/###### | | #???????????????????????? ???????????# ?????# | | #????????????????????????! ???????????#"??????# | | #???????????+????????????? ???????????????????# | | ??????????????????????????????????????????????# | | ??????????????????????????????????????????????# | | ??????????????????????????????????????????????# | | ?????????????????????????????????????????????? | | ??????????????????????????????????????????????? | | ????????????????????????? ??????????????????????? | | ????????????????????????? ??????????????????????? | | ????????????????????????? "?????????????????????? | | ????????????????????????? "??????"??????????????? | | ????????????????????????# "?????" ????????????? | | ????????????????????????# ??? ????????????? | | ????????????????????????# ?? #???????????? | | ????????????????????????# """ #???????????? | | ????????????????????????# """ w #???????????? | | ??????????????????????### """ #???????????? | | ?????????????????????? =?????????????? | | ??????????????????????? / ???????????????? | | ???????????????????????? ?????????????????? | | ????????????????????????#s ???????????????????? | | ??????????????????##+#### #????????????????????? | | ??????????????????# #@ #????????????????????? | | ??????????????????# "T" + %%#????????????????????? | | ??????????????????+ """ # =%#########????????????? | | ??????????????????# ??# ==* +????????????? | | ??????????????????##???## = #????????????? | | ???????????????????????# ^#????????? | | ???????????????????????# #????????????? | | ???????????????????????# ^+????????????? | | ???????????????????????# g ^#????????????? | | ???????????????????????# g##Y####????????????? | | ???????????????????????# t## =#?????????????? | | ???????????????????????# ## ! #?????????????? | | ???????????????????????# ## #??????#+#????? | | ???????????????????????# ## """ ######## ##### | | ???????????????????????# ## """ / | | ???????????????????????# b + """ ## ### | | ???????????????????????# ## ## # | | ???????????????????????#### ?######## + | | ??????????????????????????# ????????# ######### " | | ??????????????????????????? ????????# #???????# " | | ???????????????????????????????????# +???????# " | | ???????????????????????????????????# #???????# | | ???????????????????????????????????# +???????### | | ???????????????????????????????????# #?????????? | | ???????????????????????????????????# #?????????? | +----------------------------------------------------+ Best States ------------- Heat Dissipation 25 Energy Generation 14 Energy Capacity 250 Matter Stores 300 Matter Capacity 300 Sight Range 16 Robot Scan Range 15 Terrain Scan Density 10 Resistance: KI 20 Resistance: TH 20 Resistance: EX 20 Evasion (%) 50 Melee Accuracy 5 Item Schematics ----------------- None Robot Schematics ------------------ None Fabricated ------------ Nothing Repaired ---------- Nothing Studied --------- None Alien Tech Used ----------------- None Achievements -------------- None Challenges ------------ None RPGLIKE | -11 -10 -9 -9 -8 --------- Run | Yrd Mat Mat Min Mat Levels Raised 4 | . . 1 1 2 XP Earned 9875 | 3000 100 1750 2425 2600 XP Spent 8375 | . . 4500 1425 2450 Upgrades 33 | . . 12 15 6 Utility Slot 2 | . . . . 2 Core Integrity 15 | . . . 15 . Inventory Capacity 1 | . . . . 1 Melee Accuracy 3 | . . . . 3 KI Resistance % 4 | . . 4 . . TH Resistance % 4 | . . 4 . . EX Resistance % 4 | . . 4 . . Protomatter Created 119 | . . 63 49 7 Integrity Restored 81 | . . . 60 21 Core 81 | . . . 60 21 Protomatter Decayed 55 | . . . 55 . Game ------ Seed ExplosiveDirectedBlaster Manual? 0 Play Time 00:25:27 Cumulative 26.0 hours Start 2026.04.21 @ 11:07:15 End 2026.04.21 @ 11:38:32 Sessions 1 Manual Loads 0 Difficulty Rogue Special Mode Winter2019/RPGLIKE Game No. 47 Rogue 47 Adventurer 0 Explorer 0 Win Type - Total 0 Types 0/0/0/0/0/0/0/0/0/0 Lore% 28 Gallery% 19 Achievement% 19 Wizard Run 0 Options --------- Layout 1 ASCII 0 Keyboard 1 Movement Arrows Keybinds 0 Fullscreen 0 Font 14/SmallcapsGlow Map View 55x38 Zoom Use 0% Tactical HUD 0 Map Filters NONE Filters NONE Steam 1 RUN: 23151aed-97b6-4b54-82e3-0a662d4618f7